bitfinex/quotes_BTCUSD_20250916
["timestamp","ask_amount","ask_price","bid_price","bid_amount"]
[1758043717311,0.05794955,116820.0,116810.0,3.03692933]
[1758043717939,0.05794955,116820.0,116810.0,3.03492933]
[1758043718359,0.05794955,116820.0,116810.0,3.03692933]
[1758043718807,0.05794955,116820.0,116810.0,3.03592933]
[1758043719409,0.05794955,116820.0,116810.0,3.03392933]
[1758043719620,0.05794955,116820.0,116810.0,3.03388933]
[1758043719830,0.05794955,116820.0,116810.0,3.03384933]
[1758043720806,0.05794955,116820.0,116810.0,3.03684933]
[1758043721017,0.05794955,116820.0,116810.0,3.03984933]
[1758043721823,0.05794955,116820.0,116810.0,2.76588933]
[1758043721983,0.05794955,116820.0,116810.0,3.03984933]
[1758043724358,0.05794955,116820.0,116810.0,2.76588933]
[1758043724592,0.05794955,116820.0,116810.0,3.03984933]
[1758043724779,0.05794955,116820.0,116810.0,3.03980933]
[1758043728092,0.05794955,116820.0,116810.0,2.76588933]
[1758043728352,0.05794955,116820.0,116810.0,2.68142969]
[1758043728952,0.05794955,116820.0,116810.0,2.68992969]
[1758043729592,0.05794955,116820.0,116810.0,2.68692969]
[1758043729792,0.05794955,116820.0,116810.0,2.68892969]
[1758043730007,0.05794955,116820.0,116810.0,2.68592969]
[1758043730977,0.05794955,116820.0,116810.0,2.68792969]
[1758043731909,0.05794955,116820.0,116810.0,3.13546435]
[1758043733804,0.05794955,116820.0,116810.0,3.5384215]
[1758043736906,0.05794955,116820.0,116810.0,3.13546435]
[1758043737104,0.05794955,116820.0,116810.0,3.13538435]
[1758043737366,0.05794955,116820.0,116810.0,3.12688435]
[1758043737827,0.05794955,116820.0,116810.0,3.13538435]
[1758043739178,0.05794955,116820.0,116810.0,3.5383415]
[1758043740801,0.05794955,116820.0,116810.0,2.32947005]
[1758043741012,0.05794955,116820.0,116810.0,3.5383415]
[1758043742849,0.05794955,116820.0,116810.0,3.1983415]
[1758043743270,0.05794955,116820.0,116810.0,3.64462734]
[1758043743912,0.05794955,116820.0,116810.0,3.64458734]
[1758043744126,0.05794955,116820.0,116810.0,3.13534435]
[1758043745182,0.05794955,116820.0,116810.0,2.86154435]
[1758043745391,0.05794955,116820.0,116810.0,3.24163019]
[1758043745575,0.05794955,116820.0,116810.0,3.24159019]
[1758043746234,0.05794955,116820.0,116810.0,2.90159019]
[1758043746427,0.05794955,116820.0,116810.0,3.24159019]
[1758043746832,0.05794955,116820.0,116810.0,3.64454734]
[1758043747036,0.05794955,116820.0,116810.0,3.24159019]
[1758043747254,0.05794955,116820.0,116810.0,2.96783019]
[1758043747450,0.05794955,116820.0,116810.0,3.24159019]
[1758043748270,0.05794955,116820.0,116810.0,3.23309019]
[1758043749024,0.05794955,116820.0,116810.0,3.22309019]
[1758043750194,0.0055966,116830.0,116820.0,1.76992417]
[1758043750384,0.0055966,116830.0,116820.0,2.16497562]
[1758043750602,0.0055966,116830.0,116820.0,2.16711562]
[1758043750819,0.0055966,116830.0,116820.0,2.56721562]
[1758043751029,0.0055966,116830.0,116820.0,2.59736752]
[1758043751461,0.0055966,116830.0,116820.0,2.62407712]
[1758043751678,1e-08,116830.0,116820.0,2.62407712]
[1758043752113,1e-08,116830.0,116820.0,2.73032296]
[1758043752328,1e-08,116830.0,116820.0,2.73232296]
[1758043752542,1e-08,116830.0,116820.0,2.02345151]
[1758043752793,1e-08,116830.0,116820.0,3.22932296]
[1758043753265,1e-08,116830.0,116820.0,3.23532296]
[1758043753687,1e-08,116830.0,116820.0,3.23332296]
[1758043754114,1e-08,116830.0,116820.0,3.23532296]
[1758043754355,1e-08,116830.0,116820.0,2.96160296]
[1758043754559,1e-08,116830.0,116820.0,3.29947928]
[1758043754982,1e-08,116830.0,116820.0,3.29943928]
[1758043755182,1e-08,116830.0,116820.0,3.19315344]
[1758043756037,1e-08,116830.0,116820.0,2.91947344]
[1758043756254,1e-08,116830.0,116820.0,3.19315344]
[1758043759184,1e-08,116830.0,116820.0,3.52199344]
[1758043760079,1e-08,116830.0,116820.0,3.62827928]
[1758043760487,1e-08,116830.0,116820.0,3.12827928]
[1758043762310,0.0002,116860.0,116850.0,1.80003211]
[1758043762527,0.0002,116860.0,116850.0,2.17671641]
[1758043762684,0.0002,116860.0,116850.0,2.20514641]
[1758043763341,0.0002,116870.0,116860.0,0.25114601]
[1758043763709,0.0002,116870.0,116860.0,1.78345176]
[1758043763889,0.0002,116870.0,116860.0,1.51199176]
[1758043764102,0.0002,116870.0,116860.0,2.21129321]
[1758043764320,0.1752999,116880.0,116870.0,0.59113137]
[1758043764534,0.1752999,116880.0,116870.0,1.75714712]
[1758043764688,0.1752999,116880.0,116870.0,1.78557712]
[1758043764895,0.1752999,116880.0,116870.0,1.91197712]
[1758043765105,0.1752999,116880.0,116870.0,2.18557712]
[1758043765292,0.1752999,116880.0,116870.0,1.91207712]
[1758043765497,0.1752999,116880.0,116870.0,1.9377764]
[1758043765723,0.1751999,116880.0,116870.0,1.9377764]
[1758043765946,0.1751999,116880.0,116870.0,1.9462764]
[1758043766159,0.1751999,116880.0,116870.0,2.23036757]
[1758043766357,0.1751999,116880.0,116870.0,1.95680757]
[1758043766591,0.1751999,116880.0,116870.0,2.73036757]
[1758043767270,0.1751999,116880.0,116870.0,2.85126472]
[1758043767484,1e-08,116880.0,116870.0,2.85976472]
[1758043767912,1e-08,116880.0,116870.0,3.13332472]
[1758043768089,1e-08,116880.0,116870.0,2.45480757]
[1758043768338,1e-08,116880.0,116870.0,2.73032757]
[1758043768673,1e-08,116880.0,116870.0,2.45880757]
[1758043768899,1e-08,116880.0,116870.0,2.73032757]
[1758043769119,1e-08,116880.0,116870.0,2.73332757]
[1758043770113,1e-08,116880.0,116870.0,2.45980757]
[1758043770620,1e-08,116880.0,116870.0,2.73328757]
[1758043771035,1e-08,116880.0,116870.0,2.45980757]
[1758043771453,1e-08,116880.0,116870.0,2.79744856]
[1758043772415,1e-08,116880.0,116870.0,2.52396856]
[1758043773677,1e-08,116880.0,116870.0,2.79740856]
[1758043774629,1e-08,116880.0,116870.0,2.29740856]
[1758043775283,1e-08,116880.0,116870.0,1.95980757]
[1758043775487,1e-08,116880.0,116870.0,2.23324757]
[1758043775686,1e-08,116880.0,116870.0,1.95980757]
[1758043776012,1e-08,116880.0,116870.0,0.78064137]
[1758043776220,1e-08,116880.0,116870.0,1.37004852]
[1758043776430,0.00366,116890.0,116880.0,0.70126756]
[1758043776631,0.00366,116890.0,116880.0,1.54628616]
[1758043776837,0.00263,116890.0,116880.0,1.57143616]
[1758043777053,1.64415192,116900.0,116880.0,1.97439331]
[1758043777287,1.61467192,116900.0,116890.0,1.28586963]
[1758043777488,1.61680192,116900.0,116890.0,1.28586963]
[1758043777697,1.61680192,116900.0,116890.0,1.28596963]
[1758043778058,1.61680192,116900.0,116890.0,1.26281963]
[1758043778268,1.63678192,116900.0,116890.0,1.26281963]
[1758043778479,1.80833956,116900.0,116890.0,1.26281963]
[1758043778704,1.61227317,116900.0,116890.0,1.29497153]
[1758043778909,1.60698317,116900.0,116890.0,1.31812153]
[1758043779103,1.60698317,116900.0,116890.0,1.32012153]
[1758043779632,1.60698317,116900.0,116890.0,1.71912153]
[1758043780702,1.63268279,116900.0,116890.0,1.71912153]
[1758043782100,1.63268279,116900.0,116890.0,1.72217153]
[1758043782676,1.63268279,116900.0,116890.0,1.71912153]
[1758043782877,1.63481279,116900.0,116890.0,1.71912153]
[1758043784938,1.63797279,116900.0,116890.0,1.71712153]
[1758043785691,1.63797279,116900.0,116890.0,1.31416438]
[1758043785906,1.63797279,116900.0,116890.0,1.71712153]
[1758043786932,1.63797279,116900.0,116890.0,2.21712153]
[1758043787379,1.66295279,116900.0,116890.0,2.19397153]
[1758043787805,1.67893937,116900.0,116890.0,2.19397153]
[1758043788365,1.58885937,116900.0,116890.0,1.79089438]
[1758043788585,1.61383937,116900.0,116890.0,1.79089438]
[1758043788787,1.78492576,116900.0,116890.0,2.19385153]
[1758043789165,1.61383937,116900.0,116890.0,2.19385153]
[1758043789349,1.78492576,116900.0,116890.0,1.51861438]
[1758043789547,1.78492576,116900.0,116890.0,2.19485153]
[1758043789951,1.78492576,116900.0,116890.0,1.92157153]
[1758043790157,1.78492576,116900.0,116890.0,2.19485153]
[1758043790378,1.78492576,116900.0,116890.0,1.79485153]
[1758043790828,1.78492576,116900.0,116890.0,2.19485153]
[1758043791532,1.78492576,116900.0,116890.0,1.79485153]
[1758043791949,1.61383937,116900.0,116890.0,2.1497981]
[1758043792169,1.78492576,116900.0,116890.0,2.1497981]
[1758043792383,1.61383937,116900.0,116890.0,2.1497981]
[1758043792587,1.78492576,116900.0,116890.0,1.79189438]
[1758043792797,1.78496022,116900.0,116890.0,2.1497981]
[1758043793976,1.78496022,116900.0,116890.0,1.39189438]
[1758043794173,1.78496022,116900.0,116890.0,1.22079335]
[1758043794397,1.83581889,116900.0,116890.0,1.1342919]
[1758043794614,1.79343678,116900.0,116890.0,1.1342919]
[1758043794850,2.1513405,116900.0,116890.0,1.1342919]
[1758043795052,1.79343678,116900.0,116890.0,1.1342919]
[1758043796792,1.79353678,116900.0,116890.0,1.1342919]
[1758043799339,1.79353678,116900.0,116890.0,1.1242919]
[1758043801127,1.61397383,116900.0,116890.0,1.65329665]
[1758043801348,1.78506022,116900.0,116890.0,1.65329665]
[1758043801554,1.78506022,116900.0,116890.0,1.7397981]
[1758043802186,1.61397383,116900.0,116890.0,1.7397981]
[1758043802405,1.58583383,116900.0,116890.0,1.7419381]
[1758043802637,1.54198317,116900.0,116890.0,1.7687181]
[1758043804377,1.54198317,116900.0,116890.0,1.4954381]
[1758043804591,1.54198317,116900.0,116890.0,1.13753438]
[1758043804795,1.54198317,116900.0,116890.0,1.7685981]
[1758043805010,1.54198317,116900.0,116890.0,1.4954381]
[1758043805210,1.54198317,116900.0,116890.0,1.7685581]
[1758043805433,1.54198317,116900.0,116890.0,2.1685581]
[1758043805850,1.54188317,116900.0,116890.0,2.1685581]
[1758043807361,1.54188317,116900.0,116890.0,1.8954381]
[1758043807643,1.54188317,116900.0,116890.0,2.2354381]
[1758043807903,1.54188317,116900.0,116890.0,2.5085581]
[1758043808139,1.54188317,116900.0,116890.0,2.2354381]
[1758043808375,1.54188317,116900.0,116890.0,2.5085581]
[1758043808789,1.54188317,116900.0,116890.0,2.2354381]
[1758043809511,1.54188317,116900.0,116890.0,1.87753438]
[1758043809711,1.54188317,116900.0,116890.0,2.5085181]
[1758043810855,1.54188317,116900.0,116890.0,2.2354381]
[1758043811055,1.54188317,116900.0,116890.0,2.5085181]
[1758043811649,1.54188317,116900.0,116890.0,2.15061438]
[1758043811837,1.54188317,116900.0,116890.0,2.15057438]
[1758043812061,1.54188317,116900.0,116890.0,2.5084781]
[1758043812267,1.54188317,116900.0,116890.0,2.2354381]
[1758043812490,1.54188317,116900.0,116890.0,1.87753438]
[1758043812728,1.54188317,116900.0,116890.0,2.5084781]
[1758043812935,1.54188317,116900.0,116890.0,2.2354381]
[1758043813190,1.54188317,116900.0,116890.0,2.5064781]
[1758043813676,1.54188317,116900.0,116890.0,2.5084781]
[1758043813909,1.54188317,116900.0,116890.0,2.5064781]
[1758043814134,1.54188317,116900.0,116890.0,2.5074781]
[1758043814367,1.54188317,116900.0,116890.0,2.2344381]
[1758043814603,1.54188317,116900.0,116890.0,2.5094781]
[1758043815361,1.54188317,116900.0,116890.0,2.8381981]
[1758043819427,1.54188317,116900.0,116890.0,2.48025438]
[1758043819637,1.54188317,116900.0,116890.0,2.8381581]
[1758043820413,1.54188317,116900.0,116890.0,2.8381181]
[1758043821109,1.54188317,116900.0,116890.0,2.8381281]
[1758043824889,1.54188317,116900.0,116890.0,3.20453182]
[1758043825140,1.54188317,116900.0,116890.0,2.95726378]
[1758043825375,1.54188317,116900.0,116890.0,3.23018378]
[1758043825617,1.54188317,116900.0,116890.0,2.83018378]
[1758043825849,1.54188317,116900.0,116890.0,2.47228006]
[1758043826311,1.54188317,116900.0,116890.0,3.22718378]
[1758043826542,1.54188317,116900.0,116890.0,3.22918378]
[1758043826763,1.54188317,116900.0,116890.0,3.23118378]
[1758043826957,1.54188317,116900.0,116890.0,3.22918378]
[1758043827294,1.54188317,116900.0,116890.0,3.23218378]
[1758043827484,1.54188317,116900.0,116890.0,3.23018378]
[1758043827935,1.54188317,116900.0,116890.0,2.87128006]
[1758043828161,1.54188317,116900.0,116890.0,3.20549182]
[1758043829095,1.54188317,116900.0,116890.0,2.8475481]
[1758043829320,1.54188317,116900.0,116890.0,2.87223986]
[1758043829578,1.54188317,116900.0,116890.0,2.49164438]
[1758043829806,1.54188317,116900.0,116890.0,2.5766681]
[1758043830028,1.54188317,116900.0,116890.0,2.8465481]
[1758043830467,1.54188317,116900.0,116890.0,2.8505481]
[1758043836537,1.54188317,116900.0,116890.0,2.5776681]
[1758043836759,1.54188317,116900.0,116890.0,2.8419681]
[1758043837781,1.54188317,116900.0,116890.0,3.19987182]
[1758043837990,1.54188317,116900.0,116890.0,2.48406438]
[1758043838196,1.54188317,116900.0,116890.0,2.8419681]
[1758043841174,1.1526994,116900.0,116890.0,2.8419681]
[1758043841891,1.1526994,116900.0,116890.0,2.8504681]
[1758043842170,1.1526994,116900.0,116890.0,2.8504281]
[1758043843772,1.1526994,116900.0,116890.0,2.9240881]
[1758043845595,1.1526994,116900.0,116890.0,3.29049182]
[1758043846445,1.1526994,116900.0,116890.0,2.9325881]
[1758043847363,1.1526994,116900.0,116890.0,2.9240881]
[1758043851573,1.1526994,116900.0,116890.0,3.03037394]
[1758043852046,1.1526994,116900.0,116890.0,2.9240881]
[1758043852474,1.1526994,116900.0,116890.0,2.9325881]
[1758043853194,1.1526994,116900.0,116890.0,3.29049182]
[1758043853460,1.1526994,116900.0,116890.0,3.43837182]
[1758043853672,1.1526994,116900.0,116890.0,3.18675394]
[1758043853888,1.1526994,116900.0,116890.0,3.63348738]
[1758043854339,1.1526994,116900.0,116890.0,3.63340738]
[1758043855662,1.1526994,116900.0,116890.0,3.62490738]
[1758043856718,1.1526994,116900.0,116890.0,3.65059917]
[1758043857991,0.75586413,116900.0,116890.0,3.65059917]
[1758043858187,1e-08,116910.0,116900.0,0.54123829]
[1758043858563,0.15698127,116940.0,116930.0,0.5411944]
[1758043858783,0.15698127,116940.0,116930.0,2.15346301]
[1758043858994,0.15698127,116940.0,116930.0,1.47618585]
[1758043859205,0.15698127,116940.0,116930.0,2.28955404]
[1758043859416,0.15698127,116940.0,116930.0,2.56219404]
[1758043859630,0.15698127,116940.0,116930.0,1.75755688]
[1758043859855,0.15698127,116940.0,116930.0,1.11572688]
[1758043860058,0.18550127,116940.0,116930.0,1.12004546]
[1758043860276,0.75884772,116940.0,116930.0,0.42564145]
[1758043860493,1.09884772,116940.0,116930.0,0.60003]
[1758043860706,0.69662914,116940.0,116930.0,0.60003]
[1758043860928,0.71265341,116940.0,116930.0,0.60003]
[1758043861147,0.71265341,116940.0,116930.0,0.60303]
[1758043861573,1.11497199,116940.0,116930.0,1.10003]
[1758043862003,0.71265341,116940.0,116930.0,1.10003]
[1758043862216,0.38142761,116940.0,116930.0,1.10003]
[1758043862447,0.36540334,116940.0,116930.0,1.10103]
[1758043862862,0.76772192,116940.0,116930.0,1.09903]
[1758043863076,0.36540334,116940.0,116930.0,1.09903]
[1758043863550,0.76772192,116940.0,116930.0,1.09903]
[1758043863775,0.36540334,116940.0,116930.0,1.09903]
[1758043863987,0.76772192,116940.0,116930.0,1.09903]
[1758043864425,0.18560127,116940.0,116930.0,1.78904443]
[1758043864655,0.16209127,116940.0,116930.0,1.78904443]
[1758043864876,0.16209127,116940.0,116930.0,1.78914443]
[1758043865096,0.18586127,116940.0,116930.0,1.78914443]
[1758043865317,0.18586127,116940.0,116930.0,1.78814443]
[1758043865533,0.15708127,116940.0,116930.0,2.19638301]
[1758043865763,0.15698127,116940.0,116930.0,1.81772443]
[1758043866910,0.15698127,116940.0,116930.0,2.15772443]
[1758043867450,0.15698127,116940.0,116930.0,2.56204301]
[1758043867659,0.15698127,116940.0,116930.0,2.55972443]
[1758043867867,0.15698127,116940.0,116930.0,2.55772443]
[1758043868301,0.15698127,116940.0,116930.0,2.56072443]
[1758043868515,0.15698127,116940.0,116930.0,2.96304301]
[1758043868734,0.15698127,116940.0,116930.0,2.69040301]
[1758043868941,0.15698127,116940.0,116930.0,2.96300301]
[1758043870921,0.15698127,116940.0,116930.0,2.69040301]
[1758043871120,0.15698127,116940.0,116930.0,2.96300301]
[1758043871462,0.15698127,116940.0,116930.0,2.69040301]
[1758043871675,0.15698127,116940.0,116930.0,2.96296301]
[1758043873890,0.15698127,116940.0,116930.0,2.69040301]
[1758043874096,0.15698127,116940.0,116930.0,2.96296301]
[1758043874732,0.15894127,116940.0,116930.0,2.26149443]
[1758043874965,0.15894127,116940.0,116930.0,2.55771443]
[1758043875370,0.15698127,116940.0,116930.0,2.56064443]
[1758043875964,0.15698127,116940.0,116930.0,2.56060443]
[1758043876577,0.15698127,116940.0,116930.0,2.88920443]
[1758043877765,0.15698127,116940.0,116930.0,3.29152301]
[1758043877967,0.15698127,116940.0,116930.0,2.48688585]
[1758043878170,0.15698127,116940.0,116930.0,3.29152301]
[1758043879597,0.15698127,116940.0,116930.0,3.01900301]
[1758043879823,0.15698127,116940.0,116930.0,3.29152301]
[1758043881835,0.15698127,116940.0,116930.0,3.29148301]
[1758043886181,0.15698127,116940.0,116930.0,3.29144301]
[1758043887748,0.15698127,116940.0,116930.0,3.01900301]
[1758043887992,0.15698127,116940.0,116930.0,3.29144301]
[1758043889342,0.15698127,116940.0,116930.0,3.28744301]
[1758043889575,0.15698127,116940.0,116930.0,3.28944301]
[1758043889780,0.15698127,116940.0,116930.0,3.29340301]
[1758043891502,0.15698127,116940.0,116930.0,3.27340301]
[1758043891922,1e-08,116940.0,116930.0,3.68422159]
[1758043892148,1e-08,116940.0,116930.0,3.18422159]
[1758043893117,1e-08,116940.0,116930.0,3.18022159]
[1758043893348,1e-08,116940.0,116930.0,3.25366553]
[1758043893813,0.00106576,116950.0,116940.0,0.17102787]
[1758043894054,0.19199898,116970.0,116960.0,1.01194551]
[1758043894287,0.19199898,116970.0,116960.0,1.48916696]
[1758043894524,0.19199898,116970.0,116960.0,1.61680696]
[1758043894759,0.19199898,116970.0,116960.0,1.88916696]
[1758043894997,0.19199898,116970.0,116960.0,1.95498103]
[1758043895261,0.19199898,116970.0,116960.0,1.95508103]
[1758043896193,0.19199898,116970.0,116960.0,0.87808387]
[1758043896417,0.19199898,116970.0,116960.0,2.18272103]
[1758043896646,0.19411898,116970.0,116960.0,2.30433527]
[1758043896865,0.19411898,116970.0,116960.0,2.32699527]
[1758043897096,0.19411898,116970.0,116960.0,2.72931385]
[1758043897318,0.19199898,116970.0,116960.0,2.72931385]
[1758043898834,0.22034898,116970.0,116960.0,1.95921527]
[1758043899587,0.22034898,116970.0,116960.0,1.55921527]
[1758043900249,0.22034898,116970.0,116960.0,1.95921527]
[1758043900924,0.19199898,116970.0,116960.0,2.38630385]
[1758043901158,0.19199898,116970.0,116960.0,2.71779385]
[1758043905274,0.19149898,116970.0,116960.0,2.71779385]
[1758043905587,2.92751466,117000.0,116990.0,0.0301519]
[1758043905740,2.92751466,117000.0,116990.0,0.87337193]
[1758043905741,2.94561943,117000.0,116990.0,0.87337193]
[1758043905951,2.94561943,117000.0,116990.0,0.47105335]
[1758043906152,2.94561943,117000.0,116990.0,0.87337193]
[1758043906791,2.76613199,117000.0,116990.0,1.04432671]
[1758043907020,2.76613199,117000.0,116990.0,1.04632671]
[1758043907248,2.93707216,117000.0,116990.0,1.04632671]
[1758043907689,2.78194199,117000.0,116990.0,1.54454065]
[1758043907918,2.95288216,117000.0,116990.0,1.54454065]
[1758043908329,2.78194199,117000.0,116990.0,1.54454065]
[1758043908535,2.95288216,117000.0,116990.0,1.54454065]
[1758043908741,2.78194199,117000.0,116990.0,1.54454065]
[1758043908954,2.93689739,117000.0,116990.0,1.54464065]
[1758043909683,2.76595722,117000.0,116990.0,1.54464065]
[1758043909922,2.76595722,117000.0,116990.0,1.94464065]
[1758043911090,2.76595722,117000.0,116990.0,1.27004207]
[1758043911091,2.93689739,117000.0,116990.0,1.27004207]
[1758043911290,2.93689739,117000.0,116990.0,1.94460065]
[1758043911709,2.95288577,117000.0,116990.0,1.67236065]
[1758043911915,2.95288577,117000.0,116990.0,1.50140587]
[1758043912126,3.0393873,117000.0,116990.0,1.10140587]
[1758043912340,2.95288585,117000.0,116990.0,1.37360587]
[1758043912552,2.95288585,117000.0,116990.0,0.69908729]
[1758043912968,2.95288585,117000.0,116990.0,1.37360587]
[1758043913241,2.95288585,117000.0,116990.0,1.10140587]
[1758043913410,2.95288585,117000.0,116990.0,0.94292145]
[1758043915252,3.45288585,117000.0,116990.0,0.94292145]
[1758043917971,3.45288585,117000.0,116990.0,0.67072145]
[1758043918243,3.81022441,117000.0,116990.0,0.58422]
[1758043918510,3.81022441,117000.0,116990.0,0.85638]
[1758043918778,3.45288585,117000.0,116990.0,0.85628]
[1758043919011,3.5393873,117000.0,116990.0,0.85628]
[1758043919230,3.5393873,117000.0,116990.0,0.85428]
[1758043919924,3.89672586,117000.0,116990.0,0.85428]
[1758043920459,3.45288585,117000.0,116990.0,0.85528]
[1758043920982,3.45288585,117000.0,116990.0,0.85428]
[1758043921199,3.45288585,117000.0,116990.0,0.85528]
[1758043922503,3.45288585,117000.0,116990.0,1.21261856]
[1758043922935,3.45288585,117000.0,116990.0,0.85528]
[1758043923772,3.45288585,117000.0,116990.0,1.1838]
[1758043924355,3.43689739,117000.0,116990.0,1.1838]
[1758043927990,4.57986356,117000.0,116990.0,0.501]
[1758043928225,4.29513264,117000.0,116990.0,0.501]
[1758043928546,4.81466019,117000.0,116990.0,0.03994495]
[1758043928741,0.51096939,116980.0,116970.0,0.0001]
[1758043928978,0.95978338,116980.0,116970.0,0.06026]
[1758043929207,0.46671399,116980.0,116970.0,0.06026]
[1758043929436,0.51501295,116980.0,116970.0,0.06026]
[1758043929671,0.7016144,116980.0,116970.0,0.0001]
[1758043929900,0.17098401,116970.0,116960.0,0.27842471]
[1758043930125,0.17098401,116970.0,116960.0,0.00630471]
[1758043930126,0.57832257,116970.0,116960.0,0.00630471]
[1758043930354,0.26149165,116970.0,116960.0,0.00630471]
[1758043930579,0.59632257,116970.0,116960.0,0.00630471]
[1758043930823,0.66033245,116970.0,116960.0,0.00630471]
[1758043931075,0.38949534,116970.0,116960.0,0.00630471]
[1758043931296,0.7468339,116970.0,116960.0,0.00730471]
[1758043931515,1.0868339,116970.0,116960.0,0.00730471]
[1758043931731,1.3589539,116970.0,116960.0,0.00720471]
[1758043931946,1.0868339,116970.0,116960.0,0.00720471]
[1758043932170,1.3589539,116970.0,116960.0,0.00720471]
[1758043933296,1.85279391,116970.0,116960.0,1e-08]
[1758043933513,1.24594299,116970.0,116960.0,1e-08]
[1758043933747,1.51806299,116970.0,116960.0,1e-08]
[1758043934161,0.17101325,116950.0,116940.0,0.35434]
[1758043934371,0.52835181,116950.0,116940.0,0.35438701]
[1758043934582,0.54625181,116950.0,116940.0,0.35438701]
[1758043934791,0.59722799,116950.0,116940.0,0.35438701]
[1758043935015,0.0309059,116950.0,116940.0,0.71172557]
[1758043935239,0.0001,116950.0,116940.0,1.02715679]
[1758043935442,0.0001,116950.0,116940.0,0.66981823]
[1758043935863,0.00208,116950.0,116940.0,0.66667823]
[1758043936077,0.0001,116950.0,116940.0,1.02715679]
[1758043936795,0.0011,116950.0,116940.0,1.02715679]
[1758043937000,0.0001,116950.0,116940.0,1.02815679]
[1758043937450,0.0001,116950.0,116940.0,1.03115679]
[1758043937874,0.0001,116950.0,116940.0,1.16286652]
[1758043938534,0.0001,116950.0,116940.0,1.56286652]
[1758043941432,0.0001,116950.0,116940.0,1.56282652]
[1758043941620,0.0001,116950.0,116940.0,1.55782652]
[1758043942475,0.0001,116950.0,116940.0,1.28574652]
[1758043942677,0.0001,116950.0,116940.0,1.55782652]
[1758043942907,0.0001,116950.0,116940.0,1.28584652]
[1758043943568,0.0001,116950.0,116940.0,1.55792652]
[1758043944941,0.0001,116960.0,116950.0,0.17101325]
[1758043945169,0.0001,116960.0,116950.0,0.74656299]
[1758043945388,0.0001,116960.0,116950.0,1.04635299]
[1758043945607,0.0001,116960.0,116950.0,1.44635299]
[1758043946024,0.0001,116960.0,116950.0,1.15179299]
[1758043946209,0.00208,116960.0,116950.0,1.42179299]
[1758043946391,0.00208,116960.0,116950.0,1.42279299]
[1758043946583,0.0001,116960.0,116950.0,1.44845299]
[1758043947253,0.0001,116960.0,116950.0,1.17641299]
[1758043947457,0.0001,116960.0,116950.0,1.44845299]
[1758043948145,0.0001,116960.0,116950.0,1.47860489]
[1758043948966,0.0001,116960.0,116950.0,1.20656489]
[1758043949359,0.00208,116960.0,116950.0,1.20342489]
[1758043949767,0.00208,116960.0,116950.0,1.47542489]
[1758043949982,0.0001,116960.0,116950.0,1.47856489]
[1758043951246,0.0001,116960.0,116950.0,1.20656489]
[1758043951525,0.0001,116960.0,116950.0,1.47856489]
[1758043953088,0.0001,116960.0,116950.0,1.80712489]
[1758043953286,0.0001,116960.0,116950.0,1.53512489]
[1758043953502,0.17620863,116960.0,116950.0,0.71931335]
[1758043953708,0.18899863,116960.0,116950.0,0.71931335]
[1758043953914,0.18899863,116960.0,116950.0,0.8903266]
[1758043954146,0.18899863,116960.0,116950.0,0.41716145]
[1758043954367,0.20497225,116960.0,116950.0,0.60266]
[1758043954834,0.20497225,116960.0,116950.0,0.33066]
[1758043955057,0.20497225,116960.0,116950.0,0.60266]
[1758043955283,0.20497225,116960.0,116950.0,0.60166]
[1758043955504,0.582578,116960.0,116950.0,0.32866]
[1758043955721,0.582578,116960.0,116950.0,0.2721]
[1758043956608,0.582578,116960.0,116950.0,0.0001]
[1758043956831,1.07162629,116960.0,116950.0,0.27206]
[1758043957271,1.07262629,116960.0,116950.0,0.27206]
[1758043957710,0.6092739,116960.0,116950.0,0.27206]
[1758043957899,0.96699732,116960.0,116950.0,0.27206]
[1758043958036,0.96699732,116960.0,116950.0,0.27196]
[1758043958462,1.0315902,116960.0,116950.0,0.27196]
[1758043959087,1.0345902,116960.0,116950.0,0.27196]
[1758043959796,0.67686678,116960.0,116950.0,0.27196]
[1758043960005,1.0345902,116960.0,116950.0,0.27196]
[1758043960628,0.99698445,116960.0,116950.0,0.27196]
[1758043961854,0.51101325,116950.0,116940.0,0.07726701]
[1758043962062,0.88471029,116950.0,116940.0,0.34922701]
[1758043962277,0.90262029,116950.0,116940.0,0.34922701]
[1758043963162,0.92841619,116950.0,116940.0,0.07726701]
[1758043963322,0.92941619,116950.0,116940.0,0.34922701]
[1758043963740,0.98758999,116950.0,116940.0,0.34922701]
[1758043963944,0.62986657,116950.0,116940.0,0.34922701]
[1758043964154,0.93803389,116950.0,116940.0,0.34922701]
[1758043966642,0.58031047,116950.0,116940.0,0.34922701]
[1758043966910,0.93803389,116950.0,116940.0,0.34922701]
[1758043967769,0.58030627,116950.0,116940.0,0.34922701]
[1758043968015,0.95575334,116950.0,116940.0,0.34922701]
[1758043968248,0.58030627,116950.0,116940.0,0.34922701]
[1758043968679,0.93802969,116950.0,116940.0,0.34922701]
[1758043972065,0.92206027,116950.0,116940.0,0.34922701]
[1758043972249,0.56433685,116950.0,116940.0,0.34922701]
[1758043972451,0.92206027,116950.0,116940.0,0.34922701]
[1758043972700,0.9841349,116950.0,116940.0,0.34922701]
[1758043973139,1.00010332,116950.0,116940.0,0.34922701]
[1758043973355,0.35710842,116950.0,116940.0,0.79863188]
[1758043973568,0.00114,116950.0,116940.0,0.99261975]
[1758043974000,0.01710714,116950.0,116940.0,1.02277165]
[1758043974734,0.00114,116950.0,116940.0,1.02277165]
[1758043975158,0.00014,116950.0,116940.0,1.02277165]
[1758043975377,0.00014,116950.0,116940.0,1.03250433]
[1758043975594,0.00014,116950.0,116940.0,1.02503165]
[1758043975816,0.00014,116950.0,116940.0,1.87168527]
[1758043976244,0.00014,116950.0,116940.0,1.87068527]
[1758043976453,0.00014,116950.0,116940.0,1.60056527]
[1758043976656,0.00014,116950.0,116940.0,1.87264527]
[1758043977077,4e-05,116950.0,116940.0,1.87264527]
[1758043977291,4e-05,116950.0,116940.0,1.88017615]
[1758043977474,4e-05,116950.0,116940.0,1.60809615]
[1758043977673,4e-05,116950.0,116940.0,1.88221615]
[1758043977916,4e-05,116950.0,116940.0,1.60156527]
[1758043978138,4e-05,116950.0,116940.0,1.87364527]
[1758043978359,4e-05,116950.0,116940.0,1.60156527]
[1758043978795,4e-05,116950.0,116940.0,1.88212238]
[1758043979184,4e-05,116950.0,116940.0,1.87360527]
[1758043980048,4e-05,116950.0,116940.0,1.60156527]
[1758043980487,4e-05,116950.0,116940.0,1.87352527]
[1758043984895,4e-05,116950.0,116940.0,1.87352527]
[1758043985100,4e-05,116950.0,116940.0,2.21352527]
[1758043985968,4e-05,116950.0,116940.0,2.21348527]
[1758043988253,4e-05,116950.0,116940.0,1.94156527]
[1758043988437,4e-05,116950.0,116940.0,2.21348527]
[1758043992548,4e-05,116950.0,116940.0,2.61567379]
[1758043993178,4e-05,116950.0,116940.0,2.94423379]
[1758043993643,4e-05,116950.0,116940.0,3.00811248]
[1758043993851,4e-05,116950.0,116940.0,2.60588396]
[1758043996312,4e-05,116950.0,116940.0,3.00807248]
[1758043996965,4e-05,116950.0,116940.0,2.60588396]